[Event "Titled Tuesday Blitz October 31 Early 2023"]
[White "Pranav, V"]
[Black "Korchmar, Vasiliy"]
[WhiteFideId "25060783"]
[BlackFideId "24131750"]
[WhiteElo "3018"]
[BlackElo "2771"]
[Result "1-0"]
[Round "4"]
[TimeControl "180+1"]
[Date "2023.10.31"]
[WhiteClock "0:01:41"]
[BlackClock "0:00:00"]
[Board "6"]

1. e4 {[%clk 0:03:00]}  c5 {[%clk 0:03:00]} 2. Nf3 {[%clk 0:03:00]}  d6 {[%clk 0:03:00]} 3. d4 {[%clk 0:03:00]}  cxd4 {[%clk 0:03:01]} 4. Nxd4 {[%clk 0:02:59]}  Nf6 {[%clk 0:03:02]} 5. Nc3 {[%clk 0:02:58]}  Nc6 {[%clk 0:03:02]} 6. Bg5 {[%clk 0:02:57]}  Bd7 {[%clk 0:03:03]} 7. Qd2 {[%clk 0:02:54]}  a6 {[%clk 0:03:02]} 8. O-O-O {[%clk 0:02:52]}  e6 {[%clk 0:03:03]} 9. Nxc6 {[%clk 0:02:45]}  Bxc6 {[%clk 0:03:02]} 10. Kb1 {[%clk 0:02:43]}  Be7 {[%clk 0:03:00]} 11. f3 {[%clk 0:02:39]}  b5 {[%clk 0:02:53]} 12. h4 {[%clk 0:02:38]}  Qc7 {[%clk 0:02:45]} 13. h5 {[%clk 0:02:34]}  h6 {[%clk 0:02:43]} 14. Be3 {[%clk 0:02:33]}  b4 {[%clk 0:02:37]} 15. Ne2 {[%clk 0:02:32]}  d5 {[%clk 0:02:37]} 16. e5 {[%clk 0:02:28]}  Nd7 {[%clk 0:02:31]} 17. f4 {[%clk 0:02:27]}  Bb5 {[%clk 0:02:20]} 18. Nd4 {[%clk 0:02:25]}  Bxf1 {[%clk 0:02:18]} 19. Rhxf1 {[%clk 0:02:26]}  Nc5 {[%clk 0:02:16]} 20. f5 {[%clk 0:02:17]}  Ne4 {[%clk 0:02:12]} 21. Qd3 {[%clk 0:02:15]}  Qxe5 {[%clk 0:01:28]} 22. fxe6 {[%clk 0:02:11]}  fxe6 {[%clk 0:01:17]} 23. Bf4 {[%clk 0:02:05]}  Qf6 {[%clk 0:00:46]} 24. Bg3 {[%clk 0:01:59]}  Qg5 {[%clk 0:00:40]} 25. Nxe6 {[%clk 0:01:58]}  Qxg3 {[%clk 0:00:35]} 26. Qxd5 {[%clk 0:01:58]}  Nf6 {[%clk 0:00:14]} 27. Qxa8+ {[%clk 0:01:53]}  Kf7 {[%clk 0:00:14]} 28. Qxh8 {[%clk 0:01:53]}  Kxe6 {[%clk 0:00:15]} 29. Qc8+ {[%clk 0:01:46]}  Kf7 {[%clk 0:00:15]} 30. Rfe1 {[%clk 0:01:42]}  Bd6 {[%clk 0:00:00]} 31. Qe6+ {[%clk 0:01:41]} 1-0


[Site "https://www.chess.com"]

[Event "Titled Tuesday Blitz October 31 Early 2023"]
[White "Le, Tuan Minh"]
[Black "Fecker, Noah"]
[WhiteFideId "12401153"]
[BlackFideId "1334263"]
[WhiteElo "2985"]
[BlackElo "2760"]
[Result "1-0"]
[Round "4"]
[TimeControl "180+1"]
[Date "2023.10.31"]
[WhiteClock "0:00:56"]
[BlackClock "0:00:02"]
[Board "8"]

1. d4 {[%clk 0:02:47]}  Nf6 {[%clk 0:02:57]} 2. Nf3 {[%clk 0:02:47]}  g6 {[%clk 0:02:56]} 3. Bg5 {[%clk 0:02:47]}  Bg7 {[%clk 0:02:55]} 4. Nbd2 {[%clk 0:02:47]}  c5 {[%clk 0:02:52]} 5. Bxf6 {[%clk 0:02:45]}  Bxf6 {[%clk 0:02:49]} 6. Ne4 {[%clk 0:02:45]}  Bxd4 {[%clk 0:02:44]} 7. Nxd4 {[%clk 0:02:45]}  cxd4 {[%clk 0:02:44]} 8. Qxd4 {[%clk 0:02:46]}  O-O {[%clk 0:02:44]} 9. O-O-O {[%clk 0:02:46]}  Nc6 {[%clk 0:02:44]} 10. Qd2 {[%clk 0:02:47]}  Qa5 {[%clk 0:02:31]} 11. Nc3 {[%clk 0:02:45]}  d6 {[%clk 0:02:26]} 12. h4 {[%clk 0:02:44]}  h5 {[%clk 0:02:26]} 13. e4 {[%clk 0:02:36]}  Be6 {[%clk 0:02:21]} 14. Kb1 {[%clk 0:02:20]}  Rfc8 {[%clk 0:02:17]} 15. Be2 {[%clk 0:02:10]}  b5 {[%clk 0:02:16]} 16. f4 {[%clk 0:01:59]}  b4 {[%clk 0:01:40]} 17. Nd5 {[%clk 0:01:58]}  Bxd5 {[%clk 0:01:20]} 18. exd5 {[%clk 0:01:56]}  b3 {[%clk 0:01:15]} 19. cxb3 {[%clk 0:01:54]}  Nb4 {[%clk 0:01:13]} 20. a3 {[%clk 0:01:54]}  Rc2 {[%clk 0:01:06]} 21. Qe3 {[%clk 0:01:45]}  Nxd5 {[%clk 0:00:45]} 22. Rxd5 {[%clk 0:01:32]}  Rxe2 {[%clk 0:00:44]} 23. Qf3 {[%clk 0:01:31]}  Qa6 {[%clk 0:00:26]} 24. f5 {[%clk 0:01:27]}  Rf8 {[%clk 0:00:15]} 25. g4 {[%clk 0:01:16]}  hxg4 {[%clk 0:00:12]} 26. Qxg4 {[%clk 0:01:17]}  Rf2 {[%clk 0:00:09]} 27. fxg6 {[%clk 0:01:14]}  f5 {[%clk 0:00:09]} 28. Qh5 {[%clk 0:01:13]}  Kg7 {[%clk 0:00:07]} 29. Re1 {[%clk 0:00:59]}  Rf1 {[%clk 0:00:03]} 30. Qh7+ {[%clk 0:00:56]}  Kf6 {[%clk 0:00:03]} 31. Qxe7+ {[%clk 0:00:57]}  Kxg6 {[%clk 0:00:02]} 32. Rxd6+ {[%clk 0:00:58]}  Kh5 {[%clk 0:00:02]} 33. Qg5# {[%clk 0:00:56]} 1-0


[Site "https://www.chess.com"]

[Event "Titled Tuesday Blitz October 31 Early 2023"]
[White "Chigaev, Maksim"]
[Black "Zhao, Erick"]
[WhiteFideId "4108116"]
[BlackFideId "30946930"]
[WhiteElo "2921"]
[BlackElo "2745"]
[Result "1-0"]
[Round "4"]
[TimeControl "180+1"]
[Date "2023.10.31"]
[WhiteClock "0:00:25"]
[BlackClock "0:01:13"]
[Board "10"]

1. e4 {[%clk 0:02:50]}  c5 {[%clk 0:02:59]} 2. Ne2 {[%clk 0:02:49]}  e6 {[%clk 0:02:59]} 3. Nbc3 {[%clk 0:02:47]}  a6 {[%clk 0:02:59]} 4. g3 {[%clk 0:02:47]}  Qc7 {[%clk 0:02:56]} 5. Bg2 {[%clk 0:02:46]}  b5 {[%clk 0:02:55]} 6. d4 {[%clk 0:02:47]}  cxd4 {[%clk 0:02:54]} 7. Nxd4 {[%clk 0:02:47]}  Bb7 {[%clk 0:02:55]} 8. O-O {[%clk 0:02:46]}  d6 {[%clk 0:02:55]} 9. a4 {[%clk 0:02:32]}  b4 {[%clk 0:02:54]} 10. Nd5 {[%clk 0:02:33]}  exd5 {[%clk 0:02:52]} 11. exd5 {[%clk 0:02:34]}  Nd7 {[%clk 0:02:37]} 12. Re1+ {[%clk 0:02:26]}  Ne7 {[%clk 0:02:36]} 13. c4 {[%clk 0:02:17]}  O-O-O {[%clk 0:02:25]} 14. Bd2 {[%clk 0:02:10]}  a5 {[%clk 0:02:12]} 15. Nb5 {[%clk 0:02:09]}  Qb6 {[%clk 0:02:12]} 16. Qf3 {[%clk 0:01:50]}  Ng6 {[%clk 0:01:58]} 17. Be3 {[%clk 0:01:11]}  Nc5 {[%clk 0:01:57]} 18. Qxf7 {[%clk 0:01:01]}  Rd7 {[%clk 0:01:45]} 19. Bh3 {[%clk 0:00:58]}  Ne5 {[%clk 0:01:38]} 20. Bxc5 {[%clk 0:00:43]}  Qd8 {[%clk 0:01:33]} 21. Rxe5 {[%clk 0:00:36]}  dxe5 {[%clk 0:01:31]} 22. Bxf8 {[%clk 0:00:30]}  Rxf8 {[%clk 0:01:32]} 23. Bxd7+ {[%clk 0:00:29]}  Kb8 {[%clk 0:01:32]} 24. Qe6 {[%clk 0:00:29]}  Rf6 {[%clk 0:01:24]} 25. Qxe5+ {[%clk 0:00:29]}  Ka8 {[%clk 0:01:25]} 26. Bc6 {[%clk 0:00:26]}  Bxc6 {[%clk 0:01:16]} 27. dxc6 {[%clk 0:00:26]}  Rxc6 {[%clk 0:01:17]} 28. Qe4 {[%clk 0:00:25]}  Qd7 {[%clk 0:01:13]} 29. Nd4 {[%clk 0:00:25]} 1-0


[Site "https://www.chess.com"]

[Event "Titled Tuesday Blitz October 31 Early 2023"]
[White "Pranav Anand"]
[Black "Szpar, Milosz"]
[WhiteFideId "46626786"]
[BlackFideId "1184989"]
[WhiteElo "2917"]
[BlackElo "2720"]
[Result "1-0"]
[Round "4"]
[TimeControl "180+1"]
[Date "2023.10.31"]
[WhiteClock "0:00:05"]
[BlackClock "0:00:00"]
[Board "12"]

1. d4 {[%clk 0:03:00]}  d5 {[%clk 0:02:59]} 2. Nf3 {[%clk 0:02:59]}  Nf6 {[%clk 0:02:59]} 3. c3 {[%clk 0:03:00]}  e6 {[%clk 0:02:58]} 4. Bf4 {[%clk 0:03:00]}  c5 {[%clk 0:02:57]} 5. Nbd2 {[%clk 0:02:59]}  Nc6 {[%clk 0:02:57]} 6. e3 {[%clk 0:02:59]}  cxd4 {[%clk 0:02:57]} 7. exd4 {[%clk 0:02:59]}  Nh5 {[%clk 0:02:57]} 8. Be3 {[%clk 0:02:59]}  Bd6 {[%clk 0:02:57]} 9. g3 {[%clk 0:02:59]}  O-O {[%clk 0:02:51]} 10. Bd3 {[%clk 0:02:56]}  f5 {[%clk 0:02:48]} 11. Ne5 {[%clk 0:02:52]}  Nf6 {[%clk 0:02:41]} 12. Ndf3 {[%clk 0:02:46]}  Ne4 {[%clk 0:02:31]} 13. Qe2 {[%clk 0:02:42]}  Bd7 {[%clk 0:02:22]} 14. h4 {[%clk 0:02:27]}  Be8 {[%clk 0:02:18]} 15. Nxc6 {[%clk 0:02:23]}  bxc6 {[%clk 0:02:17]} 16. Ne5 {[%clk 0:02:22]}  c5 {[%clk 0:02:09]} 17. Kf1 {[%clk 0:02:07]}  Rb8 {[%clk 0:01:58]} 18. Kg2 {[%clk 0:02:05]}  Bxe5 {[%clk 0:01:35]} 19. dxe5 {[%clk 0:02:05]}  d4 {[%clk 0:01:35]} 20. cxd4 {[%clk 0:01:48]}  cxd4 {[%clk 0:01:36]} 21. Bf4 {[%clk 0:01:49]}  Nc5 {[%clk 0:01:24]} 22. Bc4 {[%clk 0:01:43]}  Bc6+ {[%clk 0:01:24]} 23. f3 {[%clk 0:01:43]}  Bd5 {[%clk 0:01:08]} 24. Rhc1 {[%clk 0:01:27]}  Qd7 {[%clk 0:00:35]} 25. b3 {[%clk 0:01:21]}  Rfc8 {[%clk 0:00:28]} 26. Rab1 {[%clk 0:00:46]}  a5 {[%clk 0:00:28]} 27. Rb2 {[%clk 0:00:39]}  a4 {[%clk 0:00:18]} 28. b4 {[%clk 0:00:39]}  a3 {[%clk 0:00:19]} 29. Rd2 {[%clk 0:00:37]}  d3 {[%clk 0:00:12]} 30. Qf2 {[%clk 0:00:30]}  Rxb4 {[%clk 0:00:10]} 31. Bxd5 {[%clk 0:00:31]}  Qxd5 {[%clk 0:00:10]} 32. Be3 {[%clk 0:00:31]}  Rc4 {[%clk 0:00:09]} 33. Rcd1 {[%clk 0:00:29]}  Qxe5 {[%clk 0:00:07]} 34. Re1 {[%clk 0:00:22]}  Qd5 {[%clk 0:00:07]} 35. Bf4 {[%clk 0:00:20]}  Nd7 {[%clk 0:00:04]} 36. Re3 {[%clk 0:00:20]}  Rd4 {[%clk 0:00:04]} 37. h5 {[%clk 0:00:19]}  Rc2 {[%clk 0:00:04]} 38. Re1 {[%clk 0:00:18]}  Qxa2 {[%clk 0:00:03]} 39. h6 {[%clk 0:00:17]}  Rxd2 {[%clk 0:00:03]} 40. Bxd2 {[%clk 0:00:18]}  Rc4 {[%clk 0:00:03]} 41. Rxe6 {[%clk 0:00:10]}  Rc2 {[%clk 0:00:03]} 42. Re8+ {[%clk 0:00:10]}  Nf8 {[%clk 0:00:02]} 43. hxg7 {[%clk 0:00:09]}  Kxg7 {[%clk 0:00:03]} 44. Qd4+ {[%clk 0:00:09]}  Kf7 {[%clk 0:00:01]} 45. Rxf8+ {[%clk 0:00:06]}  Kxf8 {[%clk 0:00:00]} 46. Qd8+ {[%clk 0:00:05]} 1-0


[Site "https://www.chess.com"]

[Event "Titled Tuesday Blitz October 31 Early 2023"]
[White "Ivic, Velimir"]
[Black "Sharapov, Evgeny"]
[WhiteFideId "950122"]
[BlackFideId "14103133"]
[WhiteElo "2859"]
[BlackElo "2673"]
[Result "1-0"]
[Round "4"]
[TimeControl "180+1"]
[Date "2023.10.31"]
[WhiteClock "0:02:06"]
[BlackClock "0:01:22"]
[Board "14"]

1. e4 {[%clk 0:03:00]}  c5 {[%clk 0:02:59]} 2. Nf3 {[%clk 0:02:56]}  d6 {[%clk 0:02:59]} 3. d4 {[%clk 0:02:54]}  cxd4 {[%clk 0:02:59]} 4. Nxd4 {[%clk 0:02:55]}  Nf6 {[%clk 0:02:59]} 5. Nc3 {[%clk 0:02:56]}  Nc6 {[%clk 0:02:59]} 6. Bg5 {[%clk 0:02:55]}  e6 {[%clk 0:02:59]} 7. Qd2 {[%clk 0:02:56]}  Be7 {[%clk 0:02:59]} 8. O-O-O {[%clk 0:02:51]}  O-O {[%clk 0:02:59]} 9. f4 {[%clk 0:02:48]}  Nxd4 {[%clk 0:02:58]} 10. Qxd4 {[%clk 0:02:48]}  Qa5 {[%clk 0:02:58]} 11. Kb1 {[%clk 0:02:45]}  Rd8 {[%clk 0:02:57]} 12. h4 {[%clk 0:02:44]}  Bd7 {[%clk 0:02:57]} 13. Bc4 {[%clk 0:02:42]}  Bc6 {[%clk 0:02:57]} 14. Bb3 {[%clk 0:02:40]}  h6 {[%clk 0:02:55]} 15. Qd3 {[%clk 0:02:35]}  b5 {[%clk 0:02:44]} 16. g4 {[%clk 0:02:33]}  b4 {[%clk 0:02:44]} 17. Bxf6 {[%clk 0:02:34]}  Bxf6 {[%clk 0:02:36]} 18. Ne2 {[%clk 0:02:34]}  Be7 {[%clk 0:02:02]} 19. g5 {[%clk 0:02:29]}  h5 {[%clk 0:02:01]} 20. Nd4 {[%clk 0:02:23]}  Ba4 {[%clk 0:01:55]} 21. g6 {[%clk 0:02:15]}  Bxb3 {[%clk 0:01:47]} 22. gxf7+ {[%clk 0:02:13]}  Kxf7 {[%clk 0:01:47]} 23. Qxb3 {[%clk 0:02:13]}  Rac8 {[%clk 0:01:22]} 24. Nxe6 {[%clk 0:02:06]} 1-0


[Site "https://www.chess.com"]

[Event "Titled Tuesday Blitz October 31 Early 2023"]
[White "Klukin, Kirill"]
[Black "Karamsetty, Jeevan"]
[WhiteFideId "24199273"]
[BlackFideId "2025337"]
[WhiteElo "2849"]
[BlackElo "2626"]
[Result "1-0"]
[Round "4"]
[TimeControl "180+1"]
[Date "2023.10.31"]
[WhiteClock "0:00:06"]
[BlackClock "0:00:03"]
[Board "16"]

1. d4 {[%clk 0:03:00]}  g6 {[%clk 0:02:59]} 2. Nf3 {[%clk 0:03:00]}  Bg7 {[%clk 0:02:59]} 3. c4 {[%clk 0:03:01]}  d6 {[%clk 0:02:59]} 4. Nc3 {[%clk 0:03:02]}  Nc6 {[%clk 0:02:59]} 5. Bf4 {[%clk 0:02:59]}  Nxd4 {[%clk 0:02:48]} 6. Nxd4 {[%clk 0:02:57]}  e5 {[%clk 0:02:49]} 7. Be3 {[%clk 0:02:53]}  exd4 {[%clk 0:02:49]} 8. Bxd4 {[%clk 0:02:54]}  Nf6 {[%clk 0:02:47]} 9. g3 {[%clk 0:02:52]}  O-O {[%clk 0:02:47]} 10. Bg2 {[%clk 0:02:52]}  a6 {[%clk 0:02:32]} 11. O-O {[%clk 0:02:52]}  Re8 {[%clk 0:02:31]} 12. Qd2 {[%clk 0:02:48]}  Qe7 {[%clk 0:02:24]} 13. Rac1 {[%clk 0:02:43]}  Rb8 {[%clk 0:02:18]} 14. e3 {[%clk 0:02:36]}  Be6 {[%clk 0:02:04]} 15. Nd5 {[%clk 0:02:28]}  Bxd5 {[%clk 0:01:56]} 16. cxd5 {[%clk 0:02:28]}  Rec8 {[%clk 0:01:53]} 17. Rc2 {[%clk 0:02:25]}  Nd7 {[%clk 0:01:44]} 18. Rfc1 {[%clk 0:02:22]}  Bxd4 {[%clk 0:01:43]} 19. Qxd4 {[%clk 0:02:19]}  Ne5 {[%clk 0:01:38]} 20. f4 {[%clk 0:02:02]}  Ng4 {[%clk 0:01:34]} 21. e4 {[%clk 0:02:01]}  Nf6 {[%clk 0:01:18]} 22. Bh3 {[%clk 0:01:30]}  Re8 {[%clk 0:00:51]} 23. Rxc7 {[%clk 0:01:30]}  Qd8 {[%clk 0:00:36]} 24. Bg2 {[%clk 0:00:55]}  Nd7 {[%clk 0:00:33]} 25. Bh3 {[%clk 0:00:47]}  Nc5 {[%clk 0:00:29]} 26. R7xc5 {[%clk 0:00:33]}  dxc5 {[%clk 0:00:30]} 27. Rxc5 {[%clk 0:00:33]}  Qb6 {[%clk 0:00:27]} 28. e5 {[%clk 0:00:32]}  a5 {[%clk 0:00:24]} 29. d6 {[%clk 0:00:28]}  Rbd8 {[%clk 0:00:18]} 30. Kh1 {[%clk 0:00:21]}  Qa6 {[%clk 0:00:18]} 31. Qc4 {[%clk 0:00:19]}  Qa8 {[%clk 0:00:14]} 32. Bg2 {[%clk 0:00:19]}  Qa7 {[%clk 0:00:11]} 33. Bd5 {[%clk 0:00:18]}  Rf8 {[%clk 0:00:05]} 34. Kg2 {[%clk 0:00:18]}  Qb6 {[%clk 0:00:05]} 35. Rb5 {[%clk 0:00:16]}  Qe3 {[%clk 0:00:04]} 36. Rxb7 {[%clk 0:00:15]}  Qd2+ {[%clk 0:00:04]} 37. Kh3 {[%clk 0:00:16]}  Kh8 {[%clk 0:00:03]} 38. Rxf7 {[%clk 0:00:11]}  Qd1 {[%clk 0:00:04]} 39. Rxf8+ {[%clk 0:00:10]}  Rxf8 {[%clk 0:00:05]} 40. Be4 {[%clk 0:00:03]}  Qh5+ {[%clk 0:00:04]} 41. Kg2 {[%clk 0:00:03]}  Qd1 {[%clk 0:00:05]} 42. Qd3 {[%clk 0:00:04]}  Qc1 {[%clk 0:00:04]} 43. Qd4 {[%clk 0:00:04]}  Kg7 {[%clk 0:00:02]} 44. e6+ {[%clk 0:00:04]}  Kh6 {[%clk 0:00:03]} 45. e7 {[%clk 0:00:05]}  Re8 {[%clk 0:00:03]} 46. g4 {[%clk 0:00:04]}  Rb8 {[%clk 0:00:04]} 47. g5+ {[%clk 0:00:05]}  Kh5 {[%clk 0:00:04]} 48. Bf3+ {[%clk 0:00:05]}  Kh4 {[%clk 0:00:03]} 49. Qf2# {[%clk 0:00:06]} 1-0


[Site "https://www.chess.com"]

[Event "Titled Tuesday Blitz October 31 Early 2023"]
[White "Jaskolka, Tomasz"]
[Black "Pakleza, Zbigniew"]
[WhiteFideId "1170791"]
[BlackFideId "1119290"]
[WhiteElo "2589"]
[BlackElo "2813"]
[Result "0-1"]
[Round "4"]
[TimeControl "180+1"]
[Date "2023.10.31"]
[WhiteClock "0:01:43"]
[BlackClock "0:01:56"]
[Board "17"]

1. e4 {[%clk 0:03:00]}  d5 {[%clk 0:03:00]} 2. exd5 {[%clk 0:03:00]}  Nf6 {[%clk 0:03:00]} 3. d4 {[%clk 0:02:58]}  Nxd5 {[%clk 0:03:01]} 4. c4 {[%clk 0:02:53]}  Nb6 {[%clk 0:03:01]} 5. Nc3 {[%clk 0:02:53]}  e5 {[%clk 0:03:01]} 6. dxe5 {[%clk 0:02:46]}  Qxd1+ {[%clk 0:03:02]} 7. Kxd1 {[%clk 0:02:47]}  Nc6 {[%clk 0:03:02]} 8. Nf3 {[%clk 0:02:47]}  Bg4 {[%clk 0:02:56]} 9. Bf4 {[%clk 0:02:12]}  O-O-O+ {[%clk 0:02:55]} 10. Kc1 {[%clk 0:02:11]}  h6 {[%clk 0:02:25]} 11. Bg3 {[%clk 0:01:59]}  Be6 {[%clk 0:02:09]} 12. b3 {[%clk 0:01:52]}  Ba3+ {[%clk 0:02:03]} 13. Kc2 {[%clk 0:01:43]}  Nb4+ {[%clk 0:01:56]} 0-1


[Site "https://www.chess.com"]

[Event "Titled Tuesday Blitz October 31 Early 2023"]
[White "Kozak, Antoni"]
[Black "Martinez Alcantara, Jose Eduardo"]
[WhiteFideId "21832030"]
[BlackFideId "3805662"]
[WhiteElo "2831"]
[BlackElo "3138"]
[Result "0-1"]
[Round "4"]
[TimeControl "180+1"]
[Date "2023.10.31"]
[WhiteClock "0:00:06"]
[BlackClock "0:00:18"]
[Board "19"]

1. Nf3 {[%clk 0:03:00]}  c5 {[%clk 0:02:59]} 2. c4 {[%clk 0:03:00]}  Nc6 {[%clk 0:03:00]} 3. Nc3 {[%clk 0:03:00]}  g6 {[%clk 0:03:00]} 4. e3 {[%clk 0:02:59]}  Bg7 {[%clk 0:03:01]} 5. d4 {[%clk 0:02:59]}  d6 {[%clk 0:03:02]} 6. d5 {[%clk 0:02:57]}  Nb4 {[%clk 0:03:02]} 7. h3 {[%clk 0:02:48]}  Nf6 {[%clk 0:03:02]} 8. Be2 {[%clk 0:02:46]}  O-O {[%clk 0:03:02]} 9. O-O {[%clk 0:02:46]}  e6 {[%clk 0:03:03]} 10. a3 {[%clk 0:02:45]}  Na6 {[%clk 0:03:03]} 11. e4 {[%clk 0:02:35]}  e5 {[%clk 0:03:04]} 12. Bg5 {[%clk 0:02:24]}  h6 {[%clk 0:02:48]} 13. Be3 {[%clk 0:02:23]}  Nh5 {[%clk 0:02:48]} 14. Ne1 {[%clk 0:02:17]}  Nf4 {[%clk 0:02:48]} 15. Nd3 {[%clk 0:02:17]}  Nxe2+ {[%clk 0:02:47]} 16. Qxe2 {[%clk 0:02:17]}  f5 {[%clk 0:02:47]} 17. f3 {[%clk 0:02:17]}  g5 {[%clk 0:02:42]} 18. b4 {[%clk 0:01:59]}  f4 {[%clk 0:02:42]} 19. Bf2 {[%clk 0:01:52]}  b6 {[%clk 0:02:43]} 20. Rfb1 {[%clk 0:01:52]}  Rf7 {[%clk 0:02:41]} 21. Kf1 {[%clk 0:01:53]}  h5 {[%clk 0:02:41]} 22. Ke1 {[%clk 0:01:53]}  Bf8 {[%clk 0:02:41]} 23. Kd2 {[%clk 0:01:52]}  Rg7 {[%clk 0:02:41]} 24. a4 {[%clk 0:01:44]}  g4 {[%clk 0:02:18]} 25. hxg4 {[%clk 0:01:41]}  hxg4 {[%clk 0:02:19]} 26. a5 {[%clk 0:01:16]}  Nxb4 {[%clk 0:02:19]} 27. axb6 {[%clk 0:01:11]}  Nxd3 {[%clk 0:02:15]} 28. Kxd3 {[%clk 0:01:11]}  Rb7 {[%clk 0:02:02]} 29. Rxa7 {[%clk 0:00:54]}  Rbxa7 {[%clk 0:02:03]} 30. bxa7 {[%clk 0:00:54]}  Rxa7 {[%clk 0:02:04]} 31. Rb8 {[%clk 0:00:46]}  g3 {[%clk 0:02:01]} 32. Be1 {[%clk 0:00:42]}  Qc7 {[%clk 0:01:52]} 33. Qb2 {[%clk 0:00:40]}  Bd7 {[%clk 0:01:51]} 34. Bd2 {[%clk 0:00:30]}  Kf7 {[%clk 0:01:47]} 35. Be1 {[%clk 0:00:18]}  Be7 {[%clk 0:01:48]} 36. Bd2 {[%clk 0:00:18]}  Kg7 {[%clk 0:01:48]} 37. Be1 {[%clk 0:00:18]}  Bc8 {[%clk 0:01:39]} 38. Bd2 {[%clk 0:00:18]}  Kf7 {[%clk 0:01:32]} 39. Rb3 {[%clk 0:00:18]}  Ra8 {[%clk 0:01:27]} 40. Nb5 {[%clk 0:00:17]}  Qd8 {[%clk 0:01:28]} 41. Qc2 {[%clk 0:00:16]}  Bd7 {[%clk 0:01:25]} 42. Nc3 {[%clk 0:00:16]}  Qc8 {[%clk 0:01:24]} 43. Qb1 {[%clk 0:00:15]}  Qa6 {[%clk 0:01:08]} 44. Rb7 {[%clk 0:00:13]}  Ra7 {[%clk 0:01:08]} 45. Rb6 {[%clk 0:00:13]}  Qa3 {[%clk 0:01:00]} 46. Rb3 {[%clk 0:00:13]}  Qa6 {[%clk 0:01:00]} 47. Rb6 {[%clk 0:00:14]}  Qa3 {[%clk 0:01:01]} 48. Rb3 {[%clk 0:00:14]}  Qa1 {[%clk 0:01:01]} 49. Ke2 {[%clk 0:00:08]}  Qxb1 {[%clk 0:00:50]} 50. Rxb1 {[%clk 0:00:08]}  Bd8 {[%clk 0:00:50]} 51. Rh1 {[%clk 0:00:08]}  Rb7 {[%clk 0:00:42]} 52. Rh7+ {[%clk 0:00:07]}  Kg6 {[%clk 0:00:38]} 53. Rh8 {[%clk 0:00:08]}  Bf6 {[%clk 0:00:39]} 54. Rg8+ {[%clk 0:00:07]}  Kf7 {[%clk 0:00:39]} 55. Ra8 {[%clk 0:00:07]}  Rb4 {[%clk 0:00:38]} 56. Ra7 {[%clk 0:00:06]}  Ke8 {[%clk 0:00:38]} 57. Ra6 {[%clk 0:00:06]}  Be7 {[%clk 0:00:38]} 58. Ra8+ {[%clk 0:00:06]}  Kf7 {[%clk 0:00:37]} 59. Ra7 {[%clk 0:00:07]}  Be8 {[%clk 0:00:34]} 60. Nb5 {[%clk 0:00:07]}  Bxb5 {[%clk 0:00:34]} 61. cxb5 {[%clk 0:00:03]}  Rxb5 {[%clk 0:00:35]} 62. Ba5 {[%clk 0:00:03]}  Ke8 {[%clk 0:00:32]} 63. Ra8+ {[%clk 0:00:03]}  Kf7 {[%clk 0:00:33]} 64. Ra7 {[%clk 0:00:04]}  Kf6 {[%clk 0:00:33]} 65. Bd2 {[%clk 0:00:03]}  Rb1 {[%clk 0:00:33]} 66. Be1 {[%clk 0:00:02]}  Rb2+ {[%clk 0:00:28]} 67. Kf1 {[%clk 0:00:03]}  Rb8 {[%clk 0:00:22]} 68. Rc7 {[%clk 0:00:03]}  Rh8 {[%clk 0:00:22]} 69. Kg1 {[%clk 0:00:02]}  Ra8 {[%clk 0:00:23]} 70. Kf1 {[%clk 0:00:02]}  Ra4 {[%clk 0:00:24]} 71. Kg1 {[%clk 0:00:02]}  Rd4 {[%clk 0:00:25]} 72. Kf1 {[%clk 0:00:03]}  Kf7 {[%clk 0:00:24]} 73. Rc8 {[%clk 0:00:03]}  Ra4 {[%clk 0:00:24]} 74. Rc7 {[%clk 0:00:04]}  Ke8 {[%clk 0:00:24]} 75. Rc8+ {[%clk 0:00:04]}  Kd7 {[%clk 0:00:25]} 76. Rb8 {[%clk 0:00:04]}  Bd8 {[%clk 0:00:25]} 77. Rb7+ {[%clk 0:00:05]}  Bc7 {[%clk 0:00:26]} 78. Rb2 {[%clk 0:00:05]}  Ra8 {[%clk 0:00:23]} 79. Rc2 {[%clk 0:00:04]}  Bb6 {[%clk 0:00:21]} 80. Rb2 {[%clk 0:00:05]}  Kc7 {[%clk 0:00:22]} 81. Rc2 {[%clk 0:00:05]}  Ra4 {[%clk 0:00:22]} 82. Rb2 {[%clk 0:00:05]}  c4 {[%clk 0:00:22]} 83. Rc2 {[%clk 0:00:06]}  Bd4 {[%clk 0:00:21]} 84. Ke2 {[%clk 0:00:06]}  Kb6 {[%clk 0:00:22]} 85. Bd2 {[%clk 0:00:06]}  Kc5 {[%clk 0:00:21]} 86. Rc1 {[%clk 0:00:07]}  Ra2 {[%clk 0:00:21]} 87. Ke1 {[%clk 0:00:07]}  Be3 {[%clk 0:00:18]} 88. Bxe3+ {[%clk 0:00:05]}  fxe3 {[%clk 0:00:19]} 89. Kf1 {[%clk 0:00:05]}  Rf2+ {[%clk 0:00:17]} 90. Kg1 {[%clk 0:00:06]}  e2 {[%clk 0:00:17]} 91. Re1 {[%clk 0:00:06]}  c3 {[%clk 0:00:16]} 92. f4 {[%clk 0:00:06]}  c2 {[%clk 0:00:15]} 93. fxe5 {[%clk 0:00:06]}  Rf1+ {[%clk 0:00:16]} 94. Rxf1 {[%clk 0:00:06]}  exf1=Q+ {[%clk 0:00:16]} 95. Kxf1 {[%clk 0:00:07]}  c1=Q+ {[%clk 0:00:17]} 96. Ke2 {[%clk 0:00:07]}  Qc2+ {[%clk 0:00:18]} 97. Kf3 {[%clk 0:00:06]}  Qf2+ {[%clk 0:00:18]} 0-1


[Site "https://www.chess.com"]